bitfinex-derivatives/quotes_ETHF0:USTF0_20220103
["timestamp","ask_amount","ask_price","bid_price","bid_amount"]
[1641182609718,2.00479,3782.7,3782.2,0.128157]
[1641182609719,0.55345548,3782.4,3782.2,0.128157]
[1641182610121,0.55345548,3782.4,3782.3,0.229991]
[1641182610522,0.63006448,3782.4,3782.1,0.79320692]
[1641182610819,1.37836448,3782.4,3782.1,0.79320692]
[1641182611020,1.30175548,3782.4,3782.2,0.229991]
[1641182611220,0.7483,3782.4,3782.2,0.229991]
[1641182611619,0.7483,3782.4,3782.2,0.358148]
[1641182612818,0.7483,3782.4,3782.3,0.229991]
[1641182613020,0.7483,3782.4,3782.2,0.128157]
[1641182613821,0.7483,3782.4,3782.3,0.229991]
[1641182615124,2.00479,3782.7,3782.3,0.229991]
[1641182615322,2.00479,3782.7,3782.2,0.128157]
[1641182616923,2.00479,3782.7,3782.2,0.72655742]
[1641182617424,2.00479,3782.7,3782.2,1.51973237]
[1641182617824,2.00479,3782.7,3782.2,0.92133195]
[1641182618827,0.7240242,3783.3,3782.3,1.5]
[1641182619028,1.46929124,3783.7,3783.2,1.5]
[1641182619227,1.75505331,3784.0,3783.2,0.6574]
[1641182619430,1.75505331,3784.0,3783.3,5.728944]
[1641182619627,1.39105331,3784.0,3783.6,1.5]
[1641182619826,1.39105331,3784.0,3783.6,0.79289056]
[1641182620026,1.39105331,3784.0,3783.6,2.29289056]
[1641182620230,1.39105331,3784.0,3783.7,0.128157]
[1641182620427,1.39105331,3784.0,3783.8,0.229991]
[1641182621027,0.89205331,3784.0,3783.8,0.229991]
[1641182621629,2.19406124,3784.3,3783.8,0.229991]
[1641182622231,2.00479,3784.5,3783.8,0.229991]
[1641182622530,2.00479,3784.5,3783.8,1.729991]
[1641182622732,2.00479,3784.5,3784.0,1.5]
[1641182622929,2.00479,3784.8,3784.1,1.44263616]
[1641182623143,2.00479,3784.8,3784.2,0.79276064]
[1641182623429,2.00479,3784.8,3784.3,4.227771]
[1641182623631,0.88158279,3784.5,3784.3,4.227771]
[1641182623831,0.88158279,3784.5,3784.4,0.229991]
[1641182624231,2.00479,3784.8,3784.5,0.12402724]
[1641182624431,2.00479,3784.8,3784.6,0.128157]
[1641182624630,2.00479,3784.8,3784.7,0.229991]
[1641182626434,2.00479,3784.8,3784.6,0.128157]
[1641182626634,0.076609,3784.7,3784.6,0.128157]
[1641182626935,2.00479,3784.8,3784.6,0.128157]
[1641182627336,2.00479,3784.8,3784.7,0.229991]
[1641182630038,1.17489151,3785.4,3784.7,1.02264444]
[1641182630440,1.30304851,3785.4,3784.7,2.00479]
[1641182631742,0.64470037,3785.4,3784.7,2.00479]
[1641182633148,1.69143488,3785.3,3784.7,2.00479]
[1641182633344,1.69143488,3785.3,3784.7,2.132947]
[1641182634945,1.69143488,3785.3,3784.7,2.00479]
[1641182635345,0.51654337,3785.3,3784.7,2.00479]
[1641182635945,1.69143488,3785.3,3784.7,2.00479]
[1641182636946,1.17489151,3785.3,3784.7,2.00479]
[1641182637145,0.128157,3785.4,3784.7,2.00479]
[1641182638447,0.128157,3785.4,3784.7,2.132947]
[1641182640350,2.40419,3785.5,3784.7,2.132947]
[1641182640548,2.532347,3785.5,3784.7,2.132947]
[1641182641349,2.132947,3785.5,3784.7,2.132947]
[1641182651558,2.00479,3785.5,3784.7,2.132947]
[1641182652161,1.60920551,3785.6,3784.7,2.132947]
[1641182652162,0.87751117,3785.6,3784.9,3.37743502]
[1641182652372,0.87751117,3785.6,3785.2,1.5]
[1641182652659,0.87751117,3785.6,3785.5,3.37689635]
[1641182652860,0.87751117,3785.8,3785.5,8.50232435]
[1641182654260,26.3997,3786.2,3785.5,8.50232435]
[1641182654461,1.98040946,3786.3,3785.5,8.50232435]
[1641182654862,1.98040946,3786.3,3785.9,2.00479]
[1641182659469,0.87751117,3786.2,3785.9,2.00479]
[1641182659668,0.87751117,3786.2,3786.0,0.229991]
[1641182660571,1.10289829,3786.3,3786.0,0.229991]
[1641182665877,0.076609,3786.2,3785.9,2.00479]
[1641182666077,1.10289829,3786.3,3786.0,0.229991]
[1641182666677,1.10289829,3786.3,3785.9,2.00479]
[1641182666879,0.076609,3786.2,3785.9,2.00479]
[1641182667279,1.65669829,3786.3,3785.9,2.00479]
[1641182667480,1.65669829,3786.3,3786.0,1.5963172]
[1641182668080,0.076609,3786.2,3785.5,2.39779]
[1641182668282,1.5,3786.1,3784.8,1.36676548]
[1641182668483,1.5,3786.1,3785.1,0.122356]
[1641182668985,2.00479,3785.9,3785.1,0.122356]
[1641182669182,2.00479,3785.9,3785.2,0.128157]
[1641182671482,2.00479,3785.9,3785.2,1.49376156]
[1641182671883,0.51993615,3785.8,3785.5,0.88984458]
[1641182672084,1.17489151,3785.7,3785.6,0.229991]
[1641182672682,1.25150051,3785.7,3785.5,0.88984458]
[1641182673285,1.17489151,3785.7,3785.6,0.229991]
[1641182673486,1.25150051,3785.7,3785.5,0.88984458]
[1641182673886,1.17489151,3785.7,3785.5,0.88984458]
[1641182674089,0.51993615,3785.6,3785.4,0.88984458]
[1641182674286,0.51993615,3785.6,3785.5,0.229991]
[1641182674786,1.17489151,3785.7,3785.5,0.229991]
[1641182675186,2.00479,3785.9,3785.5,0.229991]
[1641182676989,2.2777898,3786.3,3785.5,0.229991]
[1641182677589,2.00479,3785.9,3785.5,0.229991]
[1641182678189,2.00479,3785.9,3785.7,1.83835751]
[1641182678389,2.00479,3785.9,3785.8,0.229991]
[1641182682902,2.081399,3785.9,3785.7,1.83835751]
[1641182683097,4.279099,3785.9,3785.2,0.88984458]
[1641182683998,4.279099,3785.9,3785.0,24.49113458]
[1641182684199,1.5,3785.7,3785.0,24.49113458]
[1641182684399,0.95390965,3785.6,3785.0,24.49113458]
[1641182684999,0.95390965,3785.6,3785.0,2.89463458]
[1641182685700,0.95390965,3785.6,3785.0,2.00479]
[1641182688605,1.83681311,3785.6,3785.0,2.00479]
[1641182689507,0.95390965,3785.6,3785.0,2.00479]
[1641182695817,0.95390965,3785.6,3785.0,2.72689]
[1641182696619,0.95390965,3785.6,3785.0,3.61673458]
[1641182698424,0.95390965,3785.6,3785.0,2.72689]
[1641182700226,1.83681311,3785.6,3785.0,3.61673458]
[1641182701126,0.95390965,3785.6,3785.0,3.61673458]
[1641182703926,1.83681311,3785.6,3785.0,3.61673458]
[1641182707930,1.83681311,3785.6,3785.4,2.00479]
[1641182708135,0.076609,3785.5,3785.4,2.00479]
[1641182709135,0.52501854,3785.5,3785.4,2.234781]
[1641182709432,0.60162754,3785.5,3785.4,2.00479]
[1641182710738,0.52501854,3785.5,3785.4,2.00479]
[1641182710935,1.78333243,3785.5,3785.4,2.00479]
[1641182711238,1.70672343,3785.5,3785.4,2.234781]
[1641182712136,1.78333243,3785.5,3785.4,2.00479]
[1641182713836,1.70672343,3785.5,3785.4,2.234781]
[1641182714439,1.70672343,3785.5,3785.4,3.026381]
[1641182714738,1.78333243,3785.5,3785.4,2.79639]
[1641182716442,1.70672343,3785.5,3785.4,3.026381]
[1641182717743,1.46887369,3785.8,3785.4,3.148737]
[1641182717945,1.46887369,3785.8,3785.7,2.11936875]
[1641182718145,2.93345355,3786.6,3786.2,2.34780394]
[1641182718345,2.93345355,3786.6,3786.3,0.128157]
[1641182719145,1.77433484,3786.6,3786.4,0.229991]
[1641182720147,0.128157,3786.8,3786.4,0.229991]
[1641182720746,1.08459593,3786.8,3786.3,2.132947]
[1641182721346,1.08459593,3786.8,3786.5,0.89793317]
[1641182721746,1.08459593,3786.8,3786.6,0.229991]
[1641182722146,1.08459593,3786.8,3786.5,0.89793317]
[1641182722747,0.076609,3786.7,3786.5,0.89793317]
[1641182723148,1.08459593,3786.8,3786.6,0.229991]
[1641182723347,1.08459593,3786.8,3786.5,0.89793317]
[1641182723947,1.08459593,3786.8,3786.6,0.229991]
[1641182724147,0.95643893,3786.8,3786.6,0.229991]
[1641182724848,0.95643893,3786.8,3786.5,0.89793317]
[1641182725054,0.95643893,3786.8,3786.6,0.229991]
[1641182725253,0.95643893,3786.8,3786.5,0.89793317]
[1641182725454,0.95643893,3786.8,3786.6,0.89793317]
[1641182725455,0.076609,3786.7,3786.6,0.89793317]
[1641182726457,0.076609,3786.7,3786.5,0.89793317]
[1641182728056,0.95643893,3786.8,3786.5,0.89793317]
[1641182728258,0.95643893,3786.8,3786.6,0.89793317]
[1641182728259,0.076609,3786.7,3786.6,0.89793317]
[1641182728457,2.43581774,3786.8,3786.6,0.89793317]
[1641182729057,0.076609,3786.7,3786.6,0.89793317]
[1641182729357,2.43581774,3786.8,3786.6,0.89793317]
[1641182729956,0.076609,3786.7,3786.6,0.89793317]
[1641182731756,0.076609,3786.7,3786.5,0.89793317]
[1641182733663,0.076609,3786.7,3786.6,0.89793317]
[1641182734662,1.55598781,3786.7,3786.6,0.89793317]
[1641182735963,1.47937881,3786.7,3786.6,0.89793317]
[1641182736364,1.47937881,3786.7,3786.4,1.32539698]
[1641182736566,1.47937881,3786.7,3786.5,0.229991]
[1641182736868,0.076609,3786.6,3786.4,1.19723998]
[1641182737067,0.5085,3786.7,3786.4,1.19723998]
[1641182737566,1.98787881,3786.7,3786.6,0.89832873]
[1641182738666,2.45381509,3786.7,3786.6,0.89832873]
[1641182738868,2.53042409,3786.7,3786.6,0.89832873]
[1641182739271,2.45381509,3786.7,3786.6,1.12831973]
[1641182739468,2.45381509,3786.7,3786.6,0.89832873]
[1641182739769,2.53042409,3786.7,3786.6,0.89832873]
[1641182741272,2.53042409,3786.7,3786.3,3.20202998]
[1641182741674,1.05104528,3786.7,3786.3,3.20202998]
[1641182741873,1.05104528,3786.7,3786.4,1.19723998]
[1641182742274,0.72972328,3786.7,3786.5,1.729991]
[1641182742474,4.03349864,3788.2,3786.7,5.2816376]
[1641182742673,4.03349864,3788.2,3787.2,1.5]
[1641182742674,2.22085122,3787.4,3787.2,1.5]
[1641182742873,3.28149864,3788.2,3787.5,3.05956727]
[1641182743073,3.28149864,3788.2,3787.4,11.31]
[1641182743275,5.90018033,3788.8,3787.6,4.224032]
[1641182743478,4.40018033,3788.8,3787.6,1.5]
[1641182743876,4.40018033,3788.8,3787.7,4.223641]
[1641182744076,1.44234024,3789.1,3787.7,4.223641]
[1641182744278,1.44234024,3789.1,3789.0,2.00479]
[1641182744475,1.44234024,3789.1,3789.0,3.115438]
[1641182745277,2.00479,3789.9,3789.0,3.115438]
[1641182745476,1.13725627,3789.8,3789.0,3.115438]
[1641182745676,1.628157,3789.8,3789.0,3.115438]
[1641182746077,0.128157,3789.8,3789.0,3.115438]
[1641182746277,1.628157,3789.8,3789.0,3.115438]
[1641182746477,1.5,3789.1,3789.0,0.7525]
[1641182746678,0.122356,3789.0,3787.6,22.318]
[1641182747178,2.0919734,3789.1,3787.6,22.318]
[1641182747378,0.895056,3789.1,3787.6,22.318]
[1641182747579,0.7727,3789.1,3787.6,22.318]
[1641182747778,0.122356,3789.2,3787.6,22.318]
[1641182748281,2.00479,3788.5,3787.9,1.03512596]
[1641182748481,2.00479,3788.5,3788.0,0.128157]
[1641182749281,2.00479,3788.5,3788.0,1.16328296]
[1641182749682,2.00479,3788.5,3788.0,0.128157]
[1641182750585,2.00479,3788.5,3788.0,1.16328296]
[1641182750785,2.00479,3788.5,3788.0,0.128157]
[1641182751388,2.132947,3788.5,3788.0,0.128157]
[1641182751787,2.00479,3788.5,3788.0,0.128157]
[1641182753489,0.128157,3788.4,3787.7,1.03512596]
[1641182753788,0.128157,3788.4,3787.7,1.16328296]
[1641182754892,2.63509,3788.5,3787.7,1.16328296]
[1641182755094,2.00479,3788.5,3787.7,1.16328296]
[1641182755291,2.00479,3788.5,3787.7,0.128157]
[1641182756191,2.00479,3788.5,3787.7,1.16316185]
[1641182756392,0.128157,3788.4,3787.7,1.16316185]
[1641182757595,0.128157,3788.4,3787.7,1.03500485]
[1641182757797,0.927557,3788.4,3787.6,2.00479]
[1641182758195,0.927557,3788.4,3787.7,0.128157]
[1641182758695,0.7994,3788.4,3787.7,0.128157]
[1641182759197,2.00479,3788.5,3787.7,1.07859402]
[1641182759397,2.00479,3788.5,3787.7,1.63979402]
[1641182759796,2.00479,3788.5,3787.7,0.689357]
[1641182760298,2.00479,3788.5,3787.9,1.7674205]
[1641182760299,0.8901779,3788.2,3787.9,1.7674205]
[1641182760498,0.8901779,3788.2,3788.0,0.229991]
[1641182760897,0.8901779,3788.3,3788.0,0.229991]
[1641182762800,1.4598838,3788.8,3788.2,2.81885233]
[1641182762999,1.4598838,3788.8,3788.0,2.26929185]
[1641182763199,1.18744811,3789.0,3788.1,2.20931631]
[1641182764100,1.4598838,3789.3,3788.1,2.20931631]
[1641182764298,1.4598838,3789.2,3788.3,1.79554094]
[1641182764498,3.4646738,3789.2,3788.3,3.80033094]
[1641182764899,3.4646738,3789.2,3788.6,0.7918487]
[1641182765100,3.5928308,3789.2,3788.6,1.4851487]
[1641182765900,0.25584923,3789.1,3788.6,1.4851487]
[1641182768601,0.25584923,3789.1,3788.7,4.222917]
[1641182769404,0.25584923,3789.1,3788.6,0.7918487]
[1641182769802,0.38400623,3789.1,3788.6,0.7918487]
[1641182770603,0.38400623,3789.1,3788.4,1.79554094]
[1641182771804,0.25584923,3789.0,3788.4,1.79554094]
[1641182772004,1.5,3788.9,3788.1,1.79554094]
[1641182772205,1.5,3788.6,3788.1,1.79554094]
[1641182772404,3.627146,3788.6,3788.1,1.79554094]
[1641182773006,3.50479,3788.6,3788.1,1.79554094]
[1641182773209,2.00479,3788.6,3788.1,0.128157]
[1641182774206,0.25584923,3788.5,3788.1,0.128157]
[1641182774407,0.25584923,3788.5,3788.4,1.19628926]
[1641182774607,0.33245823,3788.5,3788.4,1.19628926]
[1641182775208,0.076609,3788.5,3788.1,0.128157]
[1641182775409,2.00479,3788.6,3788.1,0.128157]
[1641182775610,2.00479,3788.6,3787.9,1.79554094]
[1641182775810,4.26549,3788.6,3787.9,1.79554094]
[1641182776408,2.76549,3788.6,3788.0,1.79554094]
[1641182776808,2.76549,3788.6,3788.0,2.61574094]
[1641182777612,1.42388051,3788.5,3788.2,1.19635567]
[1641182777812,0.076609,3788.4,3788.2,1.19635567]
[1641182778411,1.42388051,3788.5,3788.2,1.19635567]
[1641182778613,1.1857558,3788.5,3788.3,0.229991]
[1641182778815,2.00479,3788.6,3788.3,0.229991]
[1641182780518,0.89326861,3788.9,3788.3,0.229991]
[1641182781818,0.24946502,3788.8,3788.7,1.19619666]
[1641182782020,0.32607402,3788.8,3788.7,1.19619666]
[1641182782421,0.32607402,3788.8,3788.6,1.19619666]
[1641182782619,0.24946502,3788.8,3788.6,1.42618766]
[1641182782819,0.076609,3788.7,3788.6,1.19619666]
[1641182783421,0.24946502,3788.8,3788.6,1.19619666]
[1641182783823,0.076609,3788.7,3788.6,1.19619666]
[1641182784022,0.96578786,3788.7,3788.2,0.79192889]
[1641182784221,0.88917886,3788.7,3788.2,0.79192889]
[1641182786023,0.88917886,3788.7,3788.1,3.80033094]
[1641182786223,0.88917886,3788.6,3788.1,3.80033094]
[1641182786425,0.88917886,3788.6,3788.1,2.00479]
[1641182787425,0.88917886,3788.6,3788.1,2.132947]
[1641182787627,0.88917886,3788.5,3788.1,2.132947]
[1641182789026,0.88917886,3788.6,3788.1,2.132947]
[1641182790932,0.24948816,3788.8,3788.1,2.132947]
[1641182790933,0.88917886,3788.7,3788.1,3.92848794]
[1641182792833,1.78244747,3788.9,3788.3,0.79191009]
[1641182793034,1.78244747,3788.9,3788.3,2.58745103]
[1641182794332,1.78244747,3788.9,3788.4,1.79554094]
[1641182795534,0.88917886,3788.7,3788.4,1.79554094]
[1641182795738,0.076609,3788.6,3788.1,3.80033094]
[1641182796436,0.88917886,3788.5,3788.1,3.80033094]
[1641182796637,0.88917886,3788.5,3788.1,2.00479]
[1641182797836,0.88917886,3788.4,3788.1,2.00479]
[1641182798037,0.076609,3788.3,3788.1,2.00479]
[1641182798239,0.91503615,3788.3,3788.1,2.00479]
[1641182798739,0.250513,3788.2,3788.1,2.00479]
[1641182799338,0.128157,3788.2,3788.1,2.00479]
[1641182799740,0.37770301,3788.2,3787.8,1.79554094]
[1641182799941,0.37770301,3788.2,3788.1,1.1967183]
[1641182800142,0.45431201,3788.2,3788.1,1.1967183]
[1641182800745,2.45910201,3788.2,3788.1,1.1967183]
[1641182806855,2.25433601,3788.2,3788.1,0.229991]
[1641182807054,2.25433601,3788.2,3788.1,1.25999126]
[1641182807455,2.00479,3788.2,3788.1,0.229991]
[1641182807656,2.89440672,3788.2,3788.1,2.04269126]
[1641182808057,2.89440672,3788.2,3788.1,2.83463894]
[1641182809259,2.00479,3788.2,3788.1,4.63017988]
[1641182809962,0.88961672,3788.5,3788.1,4.63017988]
[1641182810161,0.88961672,3788.5,3788.1,2.83463894]
[1641182810363,0.88961672,3788.5,3788.2,1.03000026]
[1641182810662,0.88961672,3788.5,3788.3,0.229991]
[1641182811261,0.88961672,3788.5,3788.2,1.03000026]
[1641182811464,0.076609,3788.4,3788.2,1.03000026]
[1641182811963,0.076609,3788.4,3788.2,2.8255412]
[1641182812562,0.076609,3788.4,3788.3,1.03000026]
[1641182813266,0.96622572,3788.4,3788.3,1.03000026]
[1641182813666,0.88961672,3788.4,3788.3,1.25999126]
[1641182813865,0.88961672,3788.4,3788.3,0.229991]
[1641182814064,0.96622572,3788.4,3788.1,1.03000026]
[1641182814267,0.96622572,3788.4,3788.1,2.8255412]
[1641182814268,0.076609,3788.4,3788.1,2.8255412]
[1641182814969,0.076609,3788.4,3788.2,1.03000026]
[1641182816574,2.89440672,3788.5,3788.2,1.03000026]
[1641182816575,2.89440672,3788.5,3788.3,0.229991]
[1641182816778,2.89440672,3788.5,3788.3,0.902891]
[1641182817177,0.88961672,3788.4,3788.3,0.902891]
[1641182818177,2.00479,3788.5,3788.3,0.902891]
[1641182818977,0.076609,3788.4,3788.3,0.6729]
[1641182819577,2.00479,3788.5,3788.3,0.6729]
[1641182819777,2.00479,3788.5,3788.3,0.902891]
[1641182820178,1.21292225,3788.5,3788.3,0.902891]
[1641182820378,0.16496142,3788.6,3788.3,0.902891]
[1641182820579,0.5770568,3788.9,3788.3,0.902891]
[1641182820778,0.5770568,3788.9,3788.5,2.00479]
[1641182820779,0.88932584,3788.8,3788.5,2.00479]
[1641182820978,0.88932584,3788.8,3788.6,0.229991]
[1641182821679,3.4646738,3789.3,3788.6,0.229991]
[1641182821879,2.132947,3789.3,3788.6,0.229991]
[1641182822678,2.85478736,3789.3,3788.6,0.229991]
[1641182822880,2.72663036,3789.3,3788.6,0.229991]
[1641182823482,0.23924807,3789.2,3788.6,0.229991]
[1641182824383,2.72663036,3789.3,3788.6,0.229991]
[1641182825382,2.85478736,3789.3,3788.6,0.229991]
[1641182825784,0.23930372,3789.2,3788.6,3.05051125]
[1641182826686,2.72663036,3789.3,3788.6,3.05051125]
[1641182829087,0.128157,3789.2,3788.6,3.05051125]
[1641182829688,2.72663036,3789.3,3788.6,3.05051125]
[1641182831494,2.72663036,3789.3,3789.0,1.19524294]
[1641182831690,2.72663036,3789.3,3789.1,0.358148]
[1641182831992,0.076609,3789.2,3789.1,0.6005]
[1641182832991,0.31606266,3789.2,3789.1,0.6005]
[1641182833790,0.076609,3789.2,3789.1,0.6005]
[1641182834393,2.72663036,3789.3,3789.1,0.6005]
[1641182834595,0.076609,3789.2,3788.9,1.32339994]
[1641182834993,2.72663036,3789.3,3789.0,0.229991]
[1641182835394,0.076609,3789.2,3789.0,0.229991]
[1641182835595,0.076609,3789.2,3789.0,1.02193836]
[1641182835996,2.72663036,3789.3,3789.0,1.02193836]
[1641182836294,0.076609,3789.2,3789.0,1.02193836]
[1641182836496,0.076609,3789.2,3788.9,1.32339994]
[1641182836697,2.72663036,3789.3,3788.9,1.32339994]
[1641182836897,2.72663036,3789.3,3789.0,0.229991]
[1641182837099,2.72663036,3789.3,3788.9,1.32339994]
[1641182837298,0.076609,3789.2,3788.9,1.32339994]
[1641182837899,0.72184036,3789.3,3789.0,0.229991]
[1641182838399,1.18751776,3789.5,3789.2,0.81707729]
[1641182838598,2.19035309,3790.4,3789.4,1.5]
[1641182838799,2.19035309,3790.4,3790.0,4.00958]
[1641182838998,2.19035309,3790.4,3790.0,5.033628]
[1641182839201,1.75193428,3790.1,3790.0,5.033628]
[1641182839602,1.75193428,3790.1,3790.0,6.05442592]
[1641182839800,2.92047079,3790.7,3790.0,6.05442592]
[1641182840000,2.76329738,3790.9,3790.0,6.05442592]
[1641182840200,2.76329738,3790.9,3790.0,5.033628]
[1641182840801,2.76329738,3790.9,3790.7,2.00479]
[1641182841001,0.076609,3790.8,3790.7,2.00479]
[1641182841202,0.31614372,3790.8,3790.7,2.00479]
[1641182842002,0.31614372,3790.8,3790.3,0.89617155]
[1641182843304,0.23953472,3790.8,3790.3,0.89617155]
[1641182843503,0.23953472,3790.8,3790.2,0.128157]
[1641182843504,0.23953472,3790.7,3790.2,1.02432855]
[1641182843703,0.23953472,3790.7,3790.2,0.89617155]
[1641182844506,0.23953472,3790.8,3790.1,0.89617155]
[1641182845004,0.23953472,3790.8,3790.7,2.00479]
[1641182845206,0.31614372,3790.8,3790.7,2.00479]
[1641182847006,0.31614372,3790.8,3790.4,1.02432855]
[1641182847806,0.31614372,3790.8,3790.4,0.89617155]
[1641182848707,0.23953472,3790.7,3790.3,0.89617155]
[1641182848908,0.122356,3790.6,3790.3,0.89617155]
[1641182849109,0.076609,3790.5,3790.3,0.89617155]
[1641182849411,0.23953472,3790.7,3790.3,0.89617155]
[1641182850011,2.74750377,3790.9,3790.3,0.89617155]
[1641182850511,1.5,3790.7,3790.0,4.00958]
[1641182851113,1.2618761,3790.9,3790.0,4.00958]
[1641182853114,1.1395201,3790.9,3790.0,4.00958]
[1641182853315,0.21636311,3790.8,3790.0,4.00958]
[1641182854016,1.2618761,3790.9,3790.0,4.00958]
[1641182855219,1.5,3790.8,3790.0,4.00958]
[1641182855421,1.2618761,3790.9,3790.0,4.00958]
[1641182857023,1.0113631,3790.9,3790.2,2.4174313]
[1641182857225,2.89134099,3791.2,3790.2,2.4174313]
[1641182858424,2.00479,3791.2,3790.2,2.4174313]
[1641182859226,0.72772185,3791.1,3790.5,2.00479]
[1641182863131,0.85587885,3791.1,3790.5,2.00479]
[1641182863330,1.40577885,3791.1,3790.5,2.00479]
[1641182880457,1.27762185,3791.1,3790.5,2.00479]
[1641182880661,1.18352965,3790.9,3790.6,0.89617155]
[1641182881760,0.076609,3790.8,3790.6,0.89617155]
[1641182881959,1.40140612,3790.9,3790.6,1.12616255]
[1641182882361,1.40140612,3790.9,3790.6,0.89617155]
[1641182882560,1.40140612,3790.9,3790.5,2.00479]
[1641182882561,1.18352965,3790.9,3790.7,0.89617155]
[1641182882762,0.076609,3790.8,3790.7,0.89617155]
[1641182882962,1.18352965,3790.9,3790.7,1.12616255]
[1641182883462,0.2178727,3790.8,3790.7,1.12616255]
[1641182884063,0.2944817,3790.8,3790.7,0.89617155]
[1641182884262,0.2178727,3790.8,3790.7,0.89617155]
[1641182885063,0.2944817,3790.8,3790.7,0.89617155]
[1641182885266,0.076609,3790.8,3790.6,0.89617155]
[1641182886065,0.076609,3790.8,3790.7,0.229991]
[1641182886267,0.076609,3790.8,3790.6,0.89617155]
[1641182886469,0.2178727,3790.7,3790.6,0.89617155]
[1641182887067,0.2178727,3790.7,3790.6,1.12616255]
[1641182887867,0.2944817,3790.7,3790.6,0.89617155]
[1641182888069,1.40140235,3790.9,3790.6,1.12616255]
[1641182888371,1.40140235,3790.9,3790.6,0.89617155]
[1641182888969,1.40140235,3790.9,3790.7,0.229991]
[1641182889770,1.18352965,3790.9,3790.7,0.229991]
[1641182890170,0.076609,3790.8,3790.6,0.89617155]
[1641182890370,1.18352965,3790.9,3790.6,0.89617155]
[1641182891273,0.076609,3790.8,3790.6,0.89617155]
[1641182891472,1.18352965,3790.9,3790.6,0.89617155]
[1641182892073,1.18352965,3790.9,3790.7,0.229991]
[1641182892273,1.26013865,3790.9,3790.7,0.229991]
[1641182892473,1.18352965,3790.9,3790.7,0.229991]
[1641182892874,0.2178727,3790.8,3790.6,0.89617155]
[1641182893074,0.2178727,3790.8,3790.7,0.229991]
[1641182893273,0.2944817,3790.8,3790.6,0.89617155]
[1641182893679,1.18352965,3790.9,3790.6,0.89617155]
[1641182894177,1.18352965,3790.9,3790.7,0.229991]
[1641182894984,1.18352965,3790.9,3790.7,1.12616255]
[1641182895581,1.18352965,3790.9,3790.7,0.229991]
[1641182895780,0.076609,3790.8,3790.6,0.89617155]
[1641182895981,1.18352965,3790.9,3790.6,0.89617155]
[1641182896781,1.18352965,3790.9,3790.7,0.229991]
[1641182896983,1.26013865,3790.9,3790.6,0.89617155]
[1641182897282,1.26013865,3790.9,3790.7,0.89617155]
[1641182897983,1.26013865,3790.9,3790.7,1.12616255]
[1641182898281,1.18352965,3790.9,3790.7,1.12616255]
[1641182898483,0.2178727,3790.8,3790.7,1.12616255]
[1641182898883,0.2178727,3790.8,3790.7,0.89617155]
[1641182899081,0.2944817,3790.8,3790.7,0.89617155]
[1641182899282,0.076609,3790.8,3790.7,0.89617155]
[1641182899482,1.40140235,3791.0,3790.7,1.12616255]
[1641182899883,0.2178727,3790.8,3790.7,1.12616255]
[1641182900986,0.2178727,3790.8,3790.7,0.89617155]
[1641182901185,1.40140235,3791.0,3790.7,1.12616255]
[1641182902286,0.076609,3790.9,3790.7,1.12616255]
[1641182902486,1.40140235,3791.0,3790.8,0.229991]
[1641182902686,1.40140235,3791.0,3790.7,0.89617155]
[1641182903488,1.40140235,3791.0,3790.8,0.229991]
[1641182903690,0.076609,3790.9,3790.7,0.89617155]
[1641182903891,1.40140235,3791.0,3790.8,0.89617155]
[1641182904390,1.40140235,3791.0,3790.9,0.229991]
[1641182904590,1.47801135,3791.0,3790.8,0.89617155]
[1641182905390,1.40140235,3791.0,3790.8,1.12616255]
[1641182905690,1.47801135,3791.0,3790.8,1.12616255]
[1641182905891,1.40140235,3790.9,3790.8,0.229991]
[1641182906594,1.40140235,3790.9,3790.8,1.12616255]
[1641182906894,0.2178727,3790.9,3790.8,1.12616255]
[1641182907093,0.2944817,3790.9,3790.8,0.89617155]
[1641182907494,0.2178727,3790.9,3790.8,0.89617155]
[1641182907694,1.40140235,3791.0,3790.8,0.89617155]
[1641182908000,0.076609,3790.9,3790.8,0.89617155]
[1641182908998,1.40140235,3791.0,3790.8,0.89617155]
[1641182909197,0.076609,3790.9,3790.5,3.19527573]
[1641182909402,1.40140235,3790.9,3790.8,1.19048573]
[1641182910199,1.47801135,3790.9,3790.8,1.19048573]
[1641182910396,0.2178727,3790.9,3790.8,1.42047673]
[1641182910598,0.2178727,3791.0,3790.8,1.11790002]
[1641182911099,0.2178727,3791.0,3790.9,0.89503544]
[1641182911300,0.2944817,3791.0,3790.9,0.89503544]
[1641182911901,0.2178727,3791.0,3790.9,1.12502644]
[1641182912301,0.2178727,3791.0,3790.9,0.89503544]
[1641182912499,0.2944817,3791.0,3790.9,2.01293546]
[1641182912699,0.2944817,3791.0,3790.9,1.11790002]
[1641182913103,0.2178727,3791.0,3790.9,1.11790002]
[1641182914201,0.2178727,3791.0,3790.9,1.34789102]
[1641182914802,0.2944817,3791.0,3790.9,1.11790002]
[1641182915005,0.2178727,3791.0,3790.9,1.34789102]
[1641182915209,2.92047079,3792.0,3790.9,2.84789102]
[1641182915401,2.92047079,3792.0,3790.9,1.34789102]
[1641182915602,2.92047079,3792.0,3791.1,5.27540477]
[1641182916002,2.92047079,3792.0,3791.9,4.00958]
[1641182916203,2.92047079,3792.0,3791.9,5.029628]
[1641182917203,1.79387117,3792.2,3791.9,6.14752802]
[1641182917806,1.79387117,3792.2,3792.0,1.11790002]
[1641182918005,1.79387117,3792.2,3792.1,0.229991]
[1641182918204,0.7554965,3792.5,3792.1,0.229991]
[1641182918404,0.7554965,3792.5,3792.1,1.42047673]
[1641182918807,5.0,3792.8,3792.1,1.42047673]
[1641182919005,5.0,3792.8,3792.2,1.11790002]
[1641182919809,5.0,3792.8,3792.2,2.30838575]
[1641182920007,5.0,3792.8,3792.3,2.00479]
[1641182920809,5.0,3792.8,3792.7,0.89077034]
[1641182921010,1.97937901,3792.8,3792.7,1.93511834]
[1641182921411,0.42518154,3792.8,3792.7,1.93511834]
[1641182922012,0.42518154,3792.8,3792.7,3.93990834]
[1641182922812,0.42518154,3792.8,3792.7,3.049138]
[1641182925816,0.42518154,3792.8,3792.7,2.920981]
[1641182927426,50.32612826,3794.2,3793.0,0.48804163]
[1641182927621,26.80522826,3794.2,3792.7,2.69099]
[1641182927820,25.4877,3794.2,3792.7,2.69099]
[1641182928020,25.4877,3794.2,3793.8,2.00479]
[1641182928221,0.128157,3794.1,3793.8,2.00479]
[1641182928420,0.076609,3794.0,3793.8,2.00479]
[1641182928620,2.00479,3794.6,3793.8,2.234781]
[1641182929022,2.00479,3794.6,3793.8,2.00479]
[1641182929223,1.24378425,3794.5,3793.8,2.00479]